fUSD/lending_fUSD_20260625
["ID","MTS","AMOUNT","RATE_DAILY","PERIOD"]
[426442679,1782395448000,-2395.51892253,0.000268,2]
[426442653,1782395448000,-4537.5,0.000268,2]
[426442650,1782395448000,-496.37551504,0.000268,2]
[426442649,1782395448000,-1121.38980766,0.000268,2]
[426442956,1782395496000,500.0,0.00030136,120]
[426442957,1782395496000,500.0,0.00030136,120]
[426442961,1782395497000,500.0,0.00030136,120]
[426442960,1782395497000,500.0,0.00030136,120]
[426442959,1782395497000,500.0,0.00030136,120]
[426442958,1782395497000,500.0,0.00030136,120]
[426442964,1782395498000,314.72387775,0.00030136,120]
[426442963,1782395498000,500.0,0.00030136,120]
[426442962,1782395498000,500.0,0.00030136,120]
[426442965,1782395559000,500.0,0.00030136,120]
[426442969,1782395560000,500.0,0.00030136,120]
[426442968,1782395560000,500.0,0.00030136,120]
[426442967,1782395560000,500.0,0.00030136,120]
[426442966,1782395560000,500.0,0.00030136,120]
[426442970,1782395561000,500.0,0.00030136,120]
[426442972,1782395561000,501.5896809,0.00030136,120]
[426442971,1782395561000,500.0,0.00030136,120]
[426442973,1782395620000,187.49800734,0.00031506,120]
[426442974,1782395633000,-254.656,0.00014225,2]
[426442975,1782395633000,-745.344,0.00014225,2]
[426442976,1782395647000,154.59603516,0.0002,120]
[426442977,1782395657000,-285.11,0.00014225,2]
[426442980,1782395657000,-500.0,0.00014514,2]
[426442978,1782395657000,-151.0,0.00014514,2]
[426442981,1782395657000,-500.0,0.00014514,2]
[426442982,1782395657000,-500.0,0.00014514,2]
[426442979,1782395657000,-153.0,0.00014514,2]
[426442984,1782395657000,-500.0,0.00014514,2]
[426442986,1782395657000,-500.0,0.00014514,2]
[426442985,1782395657000,-500.0,0.00014514,2]
[426442987,1782395657000,-500.0,0.00014514,2]
[426442988,1782395657000,-410.89,0.00014514,2]
[426442983,1782395657000,-500.0,0.00014514,2]
[426442994,1782395658000,-500.0,0.00014514,2]
[426442993,1782395658000,-500.0,0.00014514,2]
[426442991,1782395658000,-500.0,0.00014514,2]
[426442992,1782395658000,-500.0,0.00014514,2]
[426442990,1782395658000,-500.0,0.00014514,2]
[426442989,1782395658000,-89.11,0.00014514,2]
[426442995,1782395659000,-500.0,0.00014514,2]
[426442996,1782395659000,-500.0,0.00014514,2]
[426442998,1782395659000,-500.0,0.00014514,2]
[426442999,1782395659000,-410.89,0.00014514,2]
[426442997,1782395659000,-500.0,0.00014514,2]
[426443012,1782395660000,1000.0,0.00030685,120]
[426443011,1782395660000,-187.57666761,0.00014514,2]
[426443002,1782395660000,-500.0,0.00014514,2]
[426443005,1782395660000,-500.0,0.00014514,2]
[426443004,1782395660000,-500.0,0.00014514,2]
[426443003,1782395660000,-500.0,0.00014514,2]
[426443000,1782395660000,-89.11,0.00014514,2]
[426443007,1782395660000,-500.0,0.00014514,2]
[426443006,1782395660000,-500.0,0.00014514,2]
[426443010,1782395660000,-500.0,0.00014514,2]
[426443001,1782395660000,-500.0,0.00014514,2]
[426443008,1782395660000,-223.31333239,0.00014514,2]
[426443009,1782395660000,-500.0,0.00014514,2]
[426443017,1782395679000,-172.70535515,0.00014514,2]
[426443016,1782395679000,-500.0,0.00014514,2]
[426443018,1782395679000,-57014.87131246,0.00014515,2]
[426443013,1782395679000,-312.42333239,0.00014514,2]
[426443015,1782395679000,-500.0,0.00014514,2]
[426443014,1782395679000,-500.0,0.00014514,2]
[426443019,1782395685000,501.52375027,0.00030136,120]
[426443022,1782395701000,498.0,0.00030136,120]
[426443023,1782395705000,-199.28,0.00014459,2]
[426443024,1782395705000,-66000.72,0.00014515,2]
[426443026,1782395730000,188.02061413,0.00031507,120]
[426443035,1782395853000,541.69840715,0.0003013,120]
[426443036,1782395865000,976.65234096,0.0003,120]
[426443039,1782395898000,1001.0,0.00030493,120]
[426443054,1782396080000,186.91,0.00030411,120]
[426443055,1782396083000,163.81,0.00031506,120]
[426443065,1782396178000,1000.0,0.00030959,120]
[426443068,1782396179000,1000.0,0.00030959,120]
[426443067,1782396179000,1000.0,0.00030959,120]
[426443066,1782396179000,1000.0,0.00030959,120]
[426443069,1782396180000,1000.0,0.00030959,120]
[426443071,1782396180000,1000.0,0.00030959,120]
[426443072,1782396180000,1000.0,0.00030959,120]
[426443070,1782396180000,1000.0,0.00030959,120]
[426443079,1782396181000,-151.0,0.00014414,2]
[426443081,1782396181000,-151.0,0.00014414,2]
[426443082,1782396181000,-151.0,0.00014414,2]
[426443083,1782396181000,-151.0,0.00014414,2]
[426443080,1782396181000,-151.0,0.00014414,2]
[426443073,1782396181000,1000.0,0.00030959,120]
[426443075,1782396181000,-150.0,0.00014139,2]
[426443078,1782396181000,-151.0,0.00014414,2]
[426443076,1782396181000,-165.26572227,0.00014314,2]
[426443074,1782396181000,-250.0,0.00014,2]
[426443077,1782396181000,-153.0,0.00014414,2]
[426443084,1782396181000,-151.0,0.00014414,2]
[426443090,1782396181000,-328.54188342,0.00014414,2]
[426443085,1782396181000,-151.0,0.00014414,2]
[426443086,1782396181000,-153.0,0.00014414,2]
[426443096,1782396181000,1000.0,0.00030959,120]
[426443097,1782396181000,1000.0,0.00030959,120]
[426443094,1782396181000,-281.875,0.00014415,2]
[426443095,1782396181000,-1389.49739431,0.00014415,2]
[426443098,1782396181000,1000.0,0.00030959,120]
[426443092,1782396181000,-151.0,0.00014414,2]
[426443091,1782396181000,-152.0,0.00014414,2]
[426443088,1782396181000,-151.0,0.00014414,2]
[426443089,1782396181000,-151.0,0.00014414,2]
[426443087,1782396181000,-152.0,0.00014414,2]
[426443093,1782396181000,-163.82,0.00014415,2]
[426443101,1782396182000,1000.0,0.00030959,120]
[426443099,1782396182000,1000.0,0.00030959,120]
[426443100,1782396182000,1000.0,0.00030959,120]
[426443102,1782396183000,1000.0,0.00030959,120]
[426443105,1782396183000,1000.0,0.00030959,120]
[426443104,1782396183000,1000.0,0.00030959,120]
[426443103,1782396183000,1000.0,0.00030959,120]
[426443107,1782396184000,371.0,0.00030959,120]
[426443106,1782396184000,1000.0,0.00030959,120]
[426443108,1782396188000,-570.66020569,0.00014415,2]
[426443109,1782396188000,-600.0,0.00014416,2]
[426443113,1782396188000,-3378.33979431,0.00014451,2]
[426443111,1782396188000,-150.0,0.00014423,2]
[426443112,1782396188000,-150.0,0.00014451,2]
[426443110,1782396188000,-151.0,0.00014416,2]
[426443114,1782396198000,-5000.0,0.00014451,2]
[426443115,1782396199000,-1621.65020569,0.00014451,2]
[426443116,1782396199000,-159.0380665,0.00014458,2]
[426443120,1782396199000,-150.0,0.0001451,2]
[426443117,1782396199000,-150.99,0.00014458,2]
[426443119,1782396199000,-199.03,0.00014509,2]
[426443124,1782396199000,-500.0,0.00014514,2]
[426443123,1782396199000,-500.0,0.00014514,2]
[426443121,1782396199000,-500.0,0.00014514,2]
[426443122,1782396199000,-517.6754201,0.00014514,2]
[426443125,1782396199000,-114.00993998,0.00014514,2]
[426443118,1782396199000,-587.60636773,0.00014458,2]
[426443126,1782396200000,-385.99006002,0.00014514,2]
[426443127,1782396200000,-500.0,0.00014514,2]
[426443130,1782396201000,-500.0,0.00014514,2]
[426443128,1782396201000,-500.0,0.00014514,2]
[426443131,1782396201000,-500.0,0.00014514,2]
[426443129,1782396201000,-500.0,0.00014514,2]
[426443135,1782396201000,-500.0,0.00014514,2]
[426443132,1782396201000,-500.0,0.00014514,2]
[426443136,1782396201000,-114.00993998,0.00014514,2]
[426443133,1782396201000,-500.0,0.00014514,2]
[426443134,1782396201000,-500.0,0.00014514,2]
[426443146,1782396202000,-500.0,0.00014514,2]
[426443147,1782396202000,-114.00993998,0.00014514,2]
[426443142,1782396202000,-500.0,0.00014514,2]
[426443144,1782396202000,-500.0,0.00014514,2]
[426443145,1782396202000,-500.0,0.00014514,2]
[426443141,1782396202000,-500.0,0.00014514,2]
[426443139,1782396202000,-500.0,0.00014514,2]
[426443140,1782396202000,-500.0,0.00014514,2]
[426443137,1782396202000,-385.99006002,0.00014514,2]
[426443138,1782396202000,-500.0,0.00014514,2]
[426443143,1782396202000,-500.0,0.00014514,2]
[426443150,1782396203000,-500.0,0.00014514,2]
[426443148,1782396203000,-385.99006002,0.00014514,2]
[426443149,1782396203000,-500.0,0.00014514,2]
[426443152,1782396203000,-500.0,0.00014514,2]
[426443153,1782396203000,-500.0,0.00014514,2]
[426443154,1782396203000,-500.0,0.00014514,2]
[426443151,1782396203000,-500.0,0.00014514,2]
[426443158,1782396204000,-114.00993998,0.00014514,2]
[426443157,1782396204000,-500.0,0.00014514,2]
[426443156,1782396204000,-500.0,0.00014514,2]
[426443155,1782396204000,-500.0,0.00014514,2]
[426443161,1782396205000,-500.0,0.00014514,2]
[426443160,1782396205000,-500.0,0.00014514,2]
[426443159,1782396205000,-385.99006002,0.00014514,2]
[426443165,1782396205000,-500.0,0.00014514,2]
[426443164,1782396205000,-500.0,0.00014514,2]
[426443163,1782396205000,-500.0,0.00014514,2]
[426443166,1782396205000,-1614.00993998,0.00014515,2]
[426443162,1782396205000,-500.0,0.00014514,2]
[426443167,1782396206000,-5000.0,0.00014515,2]
[426443168,1782396207000,-5000.0,0.00014515,2]
[426443169,1782396262000,1000.0,0.00030685,120]
[426443176,1782396329000,-250.0,0.00014225,2]
[426443177,1782396329000,-581.743,0.00014225,2]
[426443175,1782396329000,-168.257,0.00014225,2]
[426443178,1782396336000,666.0,0.00031506,120]
[426443181,1782396564000,1000.0,0.00030685,120]
[426443219,1782396631000,-694.696,0.00014225,2]
[426443221,1782396631000,-151.0,0.00014393,2]
[426443224,1782396631000,-151.0,0.00014393,2]
[426443226,1782396631000,-17775.02107022,0.00014414,2]
[426443229,1782396631000,-2957.8,0.00014414,2]
[426443223,1782396631000,-151.0,0.00014393,2]
[426443228,1782396631000,-344.69894631,0.00014414,2]
[426443230,1782396631000,-6723.90933166,0.00014414,2]
[426443231,1782396631000,-407.54167072,0.00014414,2]
[426443233,1782396631000,-1468.31618746,0.00014414,2]
[426443234,1782396631000,-691.23969678,0.00014414,2]
[426443235,1782396631000,-353.724,0.00014414,2]
[426443236,1782396631000,-333.6256,0.00014414,2]
[426443238,1782396631000,-20526.17020018,0.00014414,2]
[426443232,1782396631000,-278.16424389,0.00014414,2]
[426443237,1782396631000,-4080.000108,0.00014414,2]
[426443288,1782396641000,-159.03806647,0.00014491,2]
[426443292,1782396641000,-500.0,0.00014514,2]
[426443295,1782396641000,-500.0,0.00014514,2]
[426443297,1782396641000,-500.0,0.00014514,2]
[426443299,1782396641000,-500.0,0.00014514,2]
[426443318,1782396641000,-500.0,0.00014514,2]
[426443315,1782396641000,-500.0,0.00014514,2]
[426443316,1782396641000,-500.0,0.00014514,2]
[426443322,1782396641000,-500.0,0.00014514,2]
[426443293,1782396641000,-500.0,0.00014514,2]
[426443300,1782396641000,-500.0,0.00014514,2]
[426443294,1782396641000,-500.0,0.00014514,2]
[426443282,1782396641000,-5800.68038027,0.00014415,2]
[426443290,1782396641000,-500.0,0.00014514,2]
[426443289,1782396641000,-7259.11751201,0.00014514,2]
[426443287,1782396641000,-166.66,0.00014442,2]
[426443286,1782396641000,-9134.65789351,0.00014415,2]
[426443285,1782396641000,-590.63,0.00014415,2]
[426443284,1782396641000,-4219.2799892,0.00014415,2]
[426443283,1782396641000,-639.9142679,0.00014415,2]
[426443303,1782396641000,-607.91795533,0.00014514,2]
[426443281,1782396641000,-944.30311392,0.00014415,2]
[426443279,1782396641000,-39353.97384481,0.00014414,2]
[426443280,1782396641000,-19641.0261552,0.00014415,2]
[426443278,1782396641000,-773.99999997,0.00014414,2]
[426443291,1782396641000,-500.0,0.00014514,2]
[426443320,1782396641000,-500.0,0.00014514,2]
[426443324,1782396641000,-500.0,0.00014514,2]
[426443323,1782396641000,-500.0,0.00014514,2]
[426443351,1782396641000,-166.66,0.00014746,2]
[426443363,1782396641000,-903.0,0.00014899,2]
[426443350,1782396641000,-225.27,0.00014691,2]
[426443347,1782396641000,-500.0,0.00014514,2]
[426443345,1782396641000,-179.17159817,0.00014514,2]
[426443361,1782396641000,-896.0,0.00014899,2]
[426443359,1782396641000,-910.0,0.00014899,2]
[426443356,1782396641000,-904.0,0.00014899,2]
[426443353,1782396641000,-891.0,0.00014899,2]
[426443305,1782396641000,-500.0,0.00014514,2]
[426443339,1782396641000,-500.0,0.00014514,2]
[426443338,1782396641000,-500.0,0.00014514,2]
[426443341,1782396641000,-450.0,0.00014514,2]
[426443343,1782396641000,-390.54758986,0.00014514,2]
[426443334,1782396641000,-500.0,0.00014514,2]
[426443309,1782396641000,-500.0,0.00014514,2]
[426443307,1782396641000,-500.0,0.00014514,2]
[426443335,1782396641000,-500.0,0.00014514,2]
[426443313,1782396641000,-500.0,0.00014514,2]
[426443326,1782396641000,-500.0,0.00014514,2]
[426443311,1782396641000,-500.0,0.00014514,2]
[426443327,1782396641000,-500.0,0.00014514,2]
[426443332,1782396641000,-500.0,0.00014514,2]
[426443329,1782396641000,-500.0,0.00014514,2]
[426443325,1782396641000,-500.0,0.00014514,2]
[426443328,1782396641000,-500.0,0.00014514,2]
[426443330,1782396641000,-500.0,0.00014514,2]
[426443368,1782396642000,-901.0,0.00014899,2]
[426443365,1782396642000,-908.0,0.00014899,2]
[426443378,1782396642000,-7738.93650204,0.00015,2]
[426443376,1782396642000,-5897.21184008,0.00015,2]
[426443370,1782396642000,-160.0,0.00014913,2]
[426443372,1782396642000,-16484.9047184,0.00015,2]
[426443373,1782396642000,-968.53788495,0.00015,2]
[426443386,1782396642000,-1461.91669558,0.00015,2]
[426443374,1782396642000,-1132.4607812,0.00015,2]
[426443380,1782396642000,-1028.59105106,0.00015,2]
[426443387,1782396642000,-954.75447708,0.00015,2]
[426443382,1782396642000,-720.24001062,0.00015,2]
[426443385,1782396642000,-12653.25308695,0.00015,2]
[426443388,1782396642000,-1241.38000001,0.00015,2]
[426443389,1782396642000,-59250.00000006,0.00015,2]
[426443367,1782396642000,-907.0,0.00014899,2]
[426443502,1782396643000,-698.7891936,0.00015,2]
[426443498,1782396643000,-5157.66391673,0.00015,2]
[426443500,1782396643000,-1476.15,0.00015,2]
[426443499,1782396643000,-351.92239674,0.00015,2]
[426443496,1782396643000,-1665.77830033,0.00015,2]
[426443497,1782396643000,-1911.16944807,0.00015,2]
[426443494,1782396643000,-365.16979105,0.00015,2]
[426443501,1782396643000,-591.44539167,0.00015,2]
[426443495,1782396643000,-54092.61569358,0.00015,2]
[426443504,1782396643000,-6823.49403011,0.00015,2]
[426443503,1782396643000,-3943.07588254,0.00015,2]
[426443505,1782396643000,-454.68174005,0.00015,2]
[426443518,1782396643000,-266.56484249,0.00015,2]
[426443511,1782396643000,-5360.67104866,0.00015,2]
[426443514,1782396643000,-572.60580778,0.00015,2]
[426443512,1782396643000,-1029.88621038,0.00015,2]
[426443517,1782396643000,-1000.0,0.00015,2]
[426443509,1782396643000,-2361.38533961,0.00015,2]
[426443508,1782396643000,-6855.90067227,0.00015,2]
[426443506,1782396643000,-106048.98288054,0.00015,2]
[426443507,1782396643000,-1226.85239246,0.00015,2]
[426443513,1782396643000,-508.0,0.00015,2]
[426443616,1782396645000,-37324.99999989,0.00015,2]
[426443580,1782396645000,-436.23,0.00015,2]
[426443711,1782396646000,-34352.40223896,0.00015,2]
[426443622,1782396646000,-788.47456397,0.00015,2]
[426443619,1782396646000,-567.62641092,0.00015,2]
[426443712,1782396646000,-585.17472321,0.00015,2]
[426443710,1782396646000,-80348.35464124,0.00015,2]
[426443714,1782396646000,-728.67311105,0.00015,2]
[426443713,1782396646000,-2340.80070775,0.00015,2]
[426443716,1782396646000,-500.0,0.00015,2]
[426443720,1782396646000,-29500.0,0.00015,2]
[426443717,1782396646000,-2042.988,0.00015,2]
[426443719,1782396646000,-2754.20277497,0.00015,2]
[426443718,1782396646000,-295000.00000001,0.00015,2]
[426443721,1782396646000,-1535.62836086,0.00015,2]
[426443715,1782396646000,-5032.255,0.00015,2]
[426443725,1782396678000,1001.0,0.00030493,120]
[426443728,1782396697000,-3074.95905133,0.00014315,2]
[426443727,1782396697000,-152.65112834,0.00014315,2]
[426443726,1782396697000,-1772.38982033,0.00014215,2]
[426443731,1782396814000,-159.03806647,0.00014144,2]
[426443733,1782396814000,-4672.33361253,0.00014215,2]
[426443732,1782396814000,-168.628321,0.00014215,2]
[426443736,1782396865000,1000.0,0.00030685,120]
[426443738,1782396939000,158.59833397,0.00031506,120]
[426443739,1782396955000,481.06,0.00031,120]
[426443748,1782397011000,-4676.64,0.00014215,2]
[426443747,1782397011000,-150.0,0.00014214,2]
[426443746,1782397011000,-173.36,0.00013936,2]
[426443749,1782397035000,-5000.0,0.00014215,2]
[426443751,1782397052000,629.0,0.00031506,120]
[426443757,1782397124000,-193.0,0.00013823,2]
[426443755,1782397124000,-173.08657126,0.00013823,2]
[426443754,1782397124000,-553.22,0.00013589,2]
[426443759,1782397124000,-203.59,0.00013823,2]
[426443760,1782397124000,-234.0,0.00014038,2]
[426443758,1782397124000,-279.81166212,0.00013823,2]
[426443761,1782397124000,-234.0,0.00014177,2]
[426443762,1782397124000,-150.0,0.00014214,2]
[426443763,1782397124000,-2729.29176662,0.00014215,2]
[426443756,1782397124000,-250.0,0.00013823,2]
[426443774,1782397346000,-166.66,0.00013688,2]
[426443773,1782397346000,-3598.26,0.00013657,2]
[426443775,1782397346000,-368.44,0.00013727,2]
[426443771,1782397346000,-200.0,0.00013192,2]
[426443770,1782397346000,-166.66,0.00013157,2]
[426443772,1782397346000,-166.66,0.00013422,2]
[426443769,1782397346000,-166.66,0.00012891,2]
[426443768,1782397346000,-166.66,0.00012625,2]
[426443776,1782397351000,-2385.66,0.00013727,2]
[426443777,1782397351000,-167.18,0.00013765,2]
[426443778,1782397351000,-187.0,0.00013793,2]
[426443779,1782397351000,-187.0,0.00013929,2]
[426443781,1782397351000,-166.66,0.00013954,2]
[426443782,1782397351000,-889.91,0.00013998,2]
[426443780,1782397351000,-1016.59,0.00013937,2]
[426443792,1782397356000,-152.0,0.00014115,2]
[426443791,1782397356000,-152.0,0.00014115,2]
[426443790,1782397356000,-152.0,0.00014115,2]
[426443789,1782397356000,-152.0,0.00014115,2]
[426443786,1782397356000,-152.0,0.00014115,2]
[426443787,1782397356000,-152.0,0.00014115,2]
[426443788,1782397356000,-152.0,0.00014115,2]
[426443785,1782397356000,-152.0,0.00014115,2]
[426443784,1782397356000,-187.0,0.00014066,2]
[426443783,1782397356000,-2708.35,0.00013998,2]
[426443793,1782397357000,-157.86015524,0.00014115,2]
[426443794,1782397357000,-730.78984476,0.00014115,2]
[426443795,1782397363000,-5000.0,0.00014115,2]
[426443796,1782397364000,-5000.0,0.00014115,2]
[426443797,1782397452000,157.52613106,0.00031507,120]
[426443798,1782397457000,1001.0,0.00030493,120]
[426443801,1782397731000,-500.0,0.00012797,2]
[426443804,1782397731000,-494.48,0.00013034,2]
[426443803,1782397731000,-150.0,0.00012924,2]
[426443802,1782397731000,-191.97026996,0.00012797,2]
[426443805,1782397731000,-150.0,0.00013052,2]
[426443807,1782397731000,-150.0,0.00013195,2]
[426443806,1782397731000,-150.0,0.0001318,2]
[426443808,1782397731000,-167.12813474,0.00013216,2]
[426443809,1782397731000,-257.04,0.00013257,2]
[426443818,1782397731000,-250.0,0.00013571,2]
[426443812,1782397731000,-341.91,0.00013433,2]
[426443811,1782397731000,-150.0,0.00013308,2]
[426443815,1782397731000,-193.0,0.00013571,2]
[426443814,1782397731000,-150.0,0.00013564,2]
[426443813,1782397731000,-150.0,0.00013436,2]
[426443817,1782397731000,-300.0,0.00013571,2]
[426443816,1782397731000,-500.0,0.00013571,2]
[426443820,1782397731000,-411.4715953,0.00013571,2]
[426443819,1782397731000,-193.0,0.00013571,2]
[426443810,1782397731000,-150.0,0.00013293,2]
[426443821,1782397776000,-88.5284047,0.00013571,2]
[426443822,1782397776000,-300.0,0.00013571,2]
[426443823,1782397776000,-250.0,0.00013571,2]
[426443828,1782397776000,-1000.0,0.00014114,2]
[426443825,1782397776000,-200.0,0.00013699,2]
[426443827,1782397776000,-184.63828196,0.00014044,2]
[426443826,1782397776000,-268.0,0.0001382,2]
[426443824,1782397776000,-150.0,0.00013692,2]
[426443830,1782397777000,-2408.83331334,0.00014114,2]
[426443829,1782397777000,-150.0,0.00014114,2]
[426443831,1782397784000,-5000.0,0.00014114,2]
[426443832,1782397786000,-1587.06737731,0.00014114,2]
[426443833,1782397786000,-257.33135969,0.00014114,2]
[426443835,1782397786000,-500.0,0.00014114,2]
[426443834,1782397786000,-500.0,0.00014114,2]
[426443837,1782397786000,-212.37279407,0.00014114,2]
[426443838,1782397786000,-500.0,0.00014114,2]
[426443836,1782397786000,-582.50008243,0.00014114,2]
[426443840,1782397787000,-360.7283865,0.00014114,2]
[426443839,1782397787000,-500.0,0.00014114,2]
[426443845,1782397788000,-500.0,0.00014114,2]
[426443841,1782397788000,-139.2716135,0.00014114,2]
[426443843,1782397788000,-500.0,0.00014114,2]
[426443842,1782397788000,-500.0,0.00014114,2]
[426443844,1782397788000,-602.79210833,0.00014114,2]
[426443849,1782397788000,-500.0,0.00014114,2]
[426443847,1782397788000,-500.0,0.00014114,2]
[426443848,1782397788000,-500.0,0.00014114,2]
[426443850,1782397788000,-500.0,0.00014114,2]
[426443851,1782397788000,-257.93627817,0.00014114,2]
[426443846,1782397788000,-500.0,0.00014114,2]
[426443855,1782397790000,-3180.93532639,0.00014115,2]
[426443853,1782397790000,-180.13195178,0.00014114,2]
[426443852,1782397790000,-242.06372183,0.00014114,2]
[426443854,1782397790000,-1396.869,0.00014115,2]
[426443871,1782397831000,-9871.54974894,0.00014115,2]
[426443874,1782397831000,-259.74240468,0.00014115,2]
[426443872,1782397831000,-5102.21621149,0.00014115,2]
[426443875,1782397831000,-271.90586894,0.00014115,2]
[426443870,1782397831000,-150.0,0.00014114,2]
[426443877,1782397831000,-169.978,0.00014115,2]
[426443879,1782397831000,-489541.42851531,0.00014115,2]
[426443873,1782397831000,-515.87853082,0.00014115,2]
[426443878,1782397831000,-2500.0,0.00014115,2]
[426443876,1782397831000,-9487.90768979,0.00014115,2]
[426443881,1782397832000,-3399.14042971,0.00014115,2]
[426443880,1782397832000,-3592.02500217,0.00014115,2]
[426443895,1782397837000,-34742.69819999,0.00014115,2]
[426443913,1782397838000,-178.4,0.00014297,2]
[426443914,1782397838000,-1576.14,0.00014297,2]
[426443916,1782397838000,-16383.64,0.00014297,2]
[426443915,1782397838000,-7237.89,0.00014297,2]
[426443911,1782397838000,-189.78734473,0.00014285,2]
[426443919,1782397838000,-9999.99,0.00014305,2]
[426443920,1782397838000,-999.99,0.00014305,2]
[426443910,1782397838000,-189.78734473,0.00014285,2]
[426443917,1782397838000,-5809.28,0.00014297,2]
[426443922,1782397838000,-9999.99,0.00014305,2]
[426443921,1782397838000,-11576.41,0.00014305,2]
[426443918,1782397838000,-2139.05,0.00014305,2]
[426443906,1782397838000,-321.90623189,0.00014243,2]
[426443901,1782397838000,-152.0,0.00014215,2]
[426443923,1782397838000,-354.39,0.00014314,2]
[426443907,1782397838000,-321.90623189,0.00014243,2]
[426443908,1782397838000,-189.78734473,0.00014285,2]
[426443904,1782397838000,-173.08657126,0.00014215,2]
[426443900,1782397838000,-152.0,0.00014215,2]
[426443903,1782397838000,-3811.3244,0.00014215,2]
[426443909,1782397838000,-189.78734473,0.00014285,2]
[426443902,1782397838000,-152.0,0.00014215,2]
[426443899,1782397838000,-232.0,0.00014214,2]
[426443898,1782397838000,-9288.1763,0.00014115,2]
[426443896,1782397838000,-968724.70785282,0.00014115,2]
[426443897,1782397838000,-326957.3703,0.00014115,2]
[426443905,1782397838000,-966.06501225,0.00014227,2]
[426443924,1782397838000,-73564.77,0.00014314,2]
[426443912,1782397838000,-189.78734473,0.00014285,2]
[426443926,1782397838000,-9999.99,0.00014314,2]
[426443966,1782397838000,-512.64,0.00014999,2]
[426443964,1782397838000,-49618.0,0.00014959,2]
[426443960,1782397838000,-600.0,0.00014928,2]
[426443958,1782397838000,-321.90623189,0.00014925,2]
[426443962,1782397838000,-49681.0,0.00014932,2]
[426443954,1782397838000,-892.0,0.00014922,2]
[426443956,1782397838000,-321.90623189,0.00014925,2]
[426443952,1782397838000,-500.0,0.000149,2]
[426443944,1782397838000,-205.13048561,0.000149,2]
[426443942,1782397838000,-273.35,0.00014757,2]
[426443948,1782397838000,-2084.29127626,0.000149,2]
[426443946,1782397838000,-224.60734172,0.000149,2]
[426443972,1782397838000,-6187.64401634,0.00015,2]
[426443950,1782397838000,-281.84335063,0.000149,2]
[426443968,1782397838000,-795465.42118905,0.00015,2]
[426443940,1782397838000,-3598.26,0.00014681,2]
[426443937,1782397838000,-9999.99,0.00014504,2]
[426443938,1782397838000,-203.59,0.00014591,2]
[426443933,1782397838000,-321.90623189,0.00014343,2]
[426443936,1782397838000,-1635.25,0.00014504,2]
[426443935,1782397838000,-371.85,0.00014504,2]
[426443929,1782397838000,-160.0,0.0001433,2]
[426443928,1782397838000,-150.99,0.00014314,2]
[426443927,1782397838000,-9999.99,0.00014314,2]
[426443931,1782397838000,-3598.26,0.0001434,2]
[426443930,1782397838000,-216.45114417,0.0001433,2]
[426443939,1782397838000,-494.48,0.00014663,2]
[426443925,1782397838000,-9818.05,0.00014314,2]
[426444010,1782397840000,-1800.79268935,0.00015,2]
[426444012,1782397840000,-2244.99222133,0.00015,2]
[426444013,1782397841000,-753.44956564,0.00014015,2]
[426444054,1782397842000,-311.0,0.00015,2]
[426444053,1782397842000,-599.78908932,0.00015,2]